Cogmind - Beta 14 @@@ ROGUE MODE // 2024.11.08 @ 07:32:02 Player: Shimmyarah Result: Self-destructed Performance ------------- Evolutions (2) 1000 Regions Visited (6) 1200 Robots Destroyed (65) 325 Value Destroyed (2009) 2009 Prototype IDs (4) 80 Alien Tech Used (0) 0 Bonus (351) 351 TOTAL SCORE: 4965 Bonus ------- High Alert Combat Kills 51 Aligned with FarCom 300 Cogmind --------- Core Integrity 175/550 Matter 138/300 Energy 1950/1950 System Corruption 6% Temperature Cool (0) Movement Core (400) Ox7 Location -8/Materials Parts ------- > --- POWER (2) -------- Deuterium Engine Deuterium Engine > --- PROPULSION (2) --- (None) > --- UTILITY (4) ------ Improved Heat Sink Superbattery Visual Processing Unit > --- WEAPON (3) ------- (None) > --- INVENTORY (5) ---- Light Deuterium Engine Light Treads Cooled VTOL Module Cooled VTOL Module Improved Heat Sink Peak State ------------ > --- POWER ------------ Nuclear Core Nuclear Core > --- PROPULSION ------- Light Treads Light Treads > --- UTILITY ---------- Improved Heat Sink Small Storage Unit Superbattery Improved Terrain Scanner > --- WEAPON ----------- Advanced Assault Cannon Advanced Assault Cannon Advanced Assault Cannon > --- INVENTORY -------- Light Nuclear Core Cooled VTOL Module Cooled VTOL Module Visual Processing Unit Improved Signal Interpreter Seismic Detector Advanced Assault Cannon Mining Laser [Rating: 39] Favorites ----------- Power Improved Ion Engine Engine Improved Ion Engine Power Core Nuclear Core Propulsion Light Treads Treads Light Treads Wheel Compact Wheel Flight Unit Cooled VTOL Module Utility Small Storage Unit Device Improved Terrain Scanner Storage Small Storage Unit Processor Visual Processing Unit Weapon Light Cannon Energy Gun Medium Laser Energy Cannon Heavy Particle Cannon Ballistic Gun Precision Assault Rifle Ballistic Cannon Light Cannon Build | -11 -10 -9 -9 -9 -8 -8 ------- Run | Yrd Mat Mat Min Exi Min Mat Slots Evolved 4 | . . 2 . . . 2 Power 1 | . . . . . . 1 Propulsion . | . . . . . . . Utility 2 | . . 1 . . . 1 Weapon 1 | . . 1 . . . . Parts Attached 58 | 7 . 7 1 1 2 40 Power 10 | 1 . 1 . . . 8 Engine 8 | 1 . 1 . . . 6 Core 2 | . . . . . . 2 Reactor . | . . . . . . . Propulsion 19 | 2 . 2 . . . 15 Treads 12 | 2 . 2 . . . 8 Leg . | . . . . . . . Wheel 2 | . . . . . . 2 Hover . | . . . . . . . Flight 5 | . . . . . . 5 Utility 13 | 2 . 1 . 1 1 8 Device 9 | 1 . 1 . . 1 6 Storage 2 | 1 . . . 1 . . Processor 2 | . . . . . . 2 Hackware . | . . . . . . . Protection . | . . . . . . . Artifact . | . . . . . . . Weapon 16 | 2 . 3 1 . 1 9 Energy Gun 5 | 2 . . . . 1 2 Energy Cannon 1 | . . . . . . 1 Ballistic Gun 1 | . . . . . . 1 Ballistic Cannon 9 | . . 3 1 . . 5 Launcher . | . . . . . . . Special Weapon . | . . . . . . . Impact Weapon . | . . . . . . . Slashing Weapon . | . . . . . . . Piercing Weapon . | . . . . . . . Special Melee Weapon . | . . . . . . . Unidentified Prototypes 4 | . . . . 1 . 3 Parts Lost 21 | . . . . . 2 19 Power 3 | . . . . . . 3 Propulsion 4 | . . . . . . 4 Utility 6 | . . . . . 1 5 Weapon 8 | . . . . . 1 7 Highest Loss Streak 8 | . . . . . 2 8 To Critical Strikes 1 | . . . . . . 1 Average Slot Usage (%) 93 | . 100 100 100 100 97 85 Engine 12 | . 14 11 11 11 11 14 Treads 18 | . 28 22 22 22 22 11 Wheel 2 | . . . . . . 4 Device 14 | . 14 22 22 16 8 13 Storage 15 | . 14 11 11 16 22 14 Processor 1 | . . . . . . 3 Energy Gun 5 | . 28 . . . 7 2 Ballistic Cannon 20 | . . 32 33 33 25 16 Peak Build Rating 39 | 9 9 13 14 23 23 39 Average Rating 20 | 5 9 12 13 18 22 29 On Entrance 12 | . 9 9 13 14 23 22 Naked Turns . | . . . . . . . Heaviest Build 43 | 15 15 23 24 27 27 43 Greatest Support 40 | 40 40 40 40 40 40 40 Greatest Overweight (x) 13 | . . . . . . 13 Average Overweight (x) . | . . . . . . . Largest Inventory Capacity 8 | 8 8 8 8 8 8 8 Average Capacity 7 | 7 8 8 8 8 8 6 Most Carried 8 | 5 7 8 8 8 8 8 Average Carried 6 | 1 4 7 7 7 7 6 Final Capacity 8 | 8 8 8 8 8 8 5 Final Carried 8 | 3 7 8 7 8 7 5 Class Distribution -------------------- 58% | Scavenger-Skirmisher 22% | Mutant 12% | Skirmisher 6% | Scavenger-Mutant Dominant Class ---------------- Mutant | -10/Materials Skirmisher | -9/Materials Scavenger-Skirmisher | -9/Mines Scavenger-Skirmisher | -9/Exiles Scavenger-Skirmisher | -8/Mines Scavenger-Skirmisher | -8/Materials Resources | -11 -10 -9 -9 -9 -8 -8 ----------- Run | Yrd Mat Mat Min Exi Min Mat Matter Collected 1755 | 270 . 146 114 . 127 1098 Remotely . | . . . . . . . Salvage Created 2104 | 115 227 177 139 . 253 1193 Parts 115 | 9 3 11 3 . 9 80 Haulers Intercepted . | . . . . . . . Recyclers Shooed 1 | . . . . . . 1 Parts Field Recycled . | . . . . . . . Retrieved Matter . | . . . . . . . Parts Self-Destructed . | . . . . . . . Prevented . | . . . . . . . Kills | -11 -10 -9 -9 -9 -8 -8 ------- Run | Yrd Mat Mat Min Exi Min Mat Combat Hostiles Destroyed 46 | . 5 3 4 . 5 29 Guns 8 | . 5 . . . . 3 Cannons 36 | . . 3 4 . 5 24 AOE 2 | . . . . . . 2 Classes Destroyed 12 | 2 1 1 1 . 2 5 Worker 3 | . . . . . 1 2 Builder 5 | . . . . . . 5 Tunneler 2 | 2 . . . . . . Recycler 7 | 1 . 1 . . 1 4 Watcher 2 | . . . . . . 2 Swarmer 6 | . . . . . . 6 Grunt 25 | . 5 . 2 . 4 14 Brawler 3 | . . . . . 1 2 Duelist 1 | . . . . . . 1 Sentry 8 | . . 3 . . . 5 Demolisher 2 | . . . 2 . . . Hunter 1 | . . . . . . 1 Best Kill Streak 10 | 2 3 3 2 . 6 10 Combat Bots Only 7 | . 3 3 2 . 5 7 Max Kills in Single Turn 3 | 1 1 1 1 . 1 3 Gunslinging . | . . . . . . . Exploded 2 | . . . . . . 2 Melee . | . . . . . . . Uniques/NPCs Destroyed . | . . . . . . . Combat | -11 -10 -9 -9 -9 -8 -8 -------- Run | Yrd Mat Mat Min Exi Min Mat Hostile Shots Fired 313 | . 38 10 6 . 30 229 Missed 94 | . 11 4 1 . 6 72 Damage Taken 3375 | . 350 90 106 . 392 2437 Core 525 | . 53 17 44 . 36 375 Absorbed by Shields . | . . . . . . . Core Remaining (%) 84 | 100 78 . . . 75 . Volleys Fired 162 | 9 23 8 7 . 11 104 Largest 3 | 2 2 3 3 . 3 3 Hottest 144 | 100 100 105 109 . 130 144 Shots Fired 319 | 18 40 24 21 . 31 185 Gun 83 | 18 40 . . . 3 22 Cannon 236 | . . 24 21 . 28 163 Launcher . | . . . . . . . Special . | . . . . . . . Kinetic 229 | . . 24 21 . 28 156 Thermal 73 | 18 40 . . . 3 12 Explosive . | . . . . . . . Electromagnetic 17 | . . . . . . 17 Robot Hit Streak 12 | 7 8 7 5 . 8 12 Robot Miss Streak 4 | 2 3 1 2 . 2 4 Penetration Max . | . . . . . . . Secondary Targets 1 | . 1 . . . . . Max Gunslinging Chain 1 | . 1 . . . . . Shots Hit Robots 188 | 11 24 15 10 . 21 107 Core Hits 99 | 4 12 6 7 . 13 57 Critical Kills . | . . . . . . . Critical Parts Destroyed . | . . . . . . . Critical Strikes 8 | . 2 . 1 . 1 4 Burn 4 | . 2 . . . 1 1 Blast 4 | . . . 1 . . 3 Melee Attacks . | . . . . . . . Impact . | . . . . . . . Slashing . | . . . . . . . Piercing . | . . . . . . . Sneak Attacks . | . . . . . . . Combat Hostiles . | . . . . . . . Follow-up Attacks . | . . . . . . . Damage Inflicted 4453 | 143 301 277 179 . 386 3167 Guns 717 | 142 301 . . . 28 246 Cannons 3596 | . . 277 179 . 351 2789 Explosions 93 | . . . . . . 93 Melee . | . . . . . . . Ramming 47 | 1 . . . . 7 39 Kinetic 3460 | . . 277 179 . 351 2653 Thermal 783 | 142 301 . . . 28 312 Explosive . | . . . . . . . Electromagnetic 163 | . . . . . . 163 Impact . | . . . . . . . Slashing . | . . . . . . . Piercing . | . . . . . . . Highest Corruption 6 | . . . . . . 6 Average Corruption 2 | . . . . . . 2 Corruption Purged . | . . . . . . . Corruption Blocked . | . . . . . . . Effects 20 | . . . . . . 20 Message Errors 1 | . . . . . . 1 Matter Fused 7 | . . . . . . 7 Heat Flow Errors 1 | . . . . . . 1 Energy Discharges 3 | . . . . . . 3 Data Loss (minor) 4 | . . . . . . 4 Data Loss (major) 1 | . . . . . . 1 Alerts 1 | . . . . . . 1 Weapon Failures 2 | . . . . . . 2 Overload Shots . | . . . . . . . Overflow Damage 38 | . . . . . . 38 Projectiles 35 | . . . . . . 35 Explosions 3 | . . . . . . 3 Melee . | . . . . . . . Knockbacks 30 | . . . 2 . 3 25 Impact 1 | . . . . . . 1 Kinetic 24 | . . . 2 . 2 20 Secondary 5 | . . . . . 1 4 Self-Inflicted Damage 36 | . . . . . . 36 Shots 1 | . . . . . . 1 Rammed 11 | 1 . . . . 2 8 Targets Rammed 12 | 1 . . . . 3 8 Kicked . | . . . . . . . Crushed 1 | . . . . . 1 . Highest Temperature 521 | 273 521 166 125 . 444 401 Average Temperature 170 | 116 238 64 54 . 247 164 Received Heat Transfer 1485 | . 195 18 30 . 216 1026 Effects 13 | . 5 . . . 2 6 Shutdowns 5 | . 2 . . . 1 2 Energy Bleed 1 | . . . . . 1 . Interference 5 | . 1 . . . . 4 Damage (major) 2 | . 2 . . . . . Siege Activations . | . . . . . . . Robots Corrupted . | . . . . . . . Combat Hostiles . | . . . . . . . Parts Fried . | . . . . . . . Impact Corruptions . | . . . . . . . Robots Melted . | . . . . . . . Combat Hostiles . | . . . . . . . Parts Melted 3 | 1 2 . . . . . Heat Transferred 1998 | 407 1036 . . . 148 407 Parts Sabotaged . | . . . . . . . Parts Stolen . | . . . . . . . Parts Stripped . | . . . . . . . Power Chain Reactions 1 | . . . . . . 1 Alert | -11 -10 -9 -9 -9 -8 -8 ------- Run | Yrd Mat Mat Min Exi Min Mat Peak Influence 543 | 15 136 132 151 . 126 543 Initial 51 | . 9 . 51 . . 48 Average 143 | 8 45 86 122 . 84 218 Maximum Alert Level 2 | . . . . . . 2 Low Security (%) 71 | 100 100 100 100 . 100 43 Level 1 20 | . . . . . . 41 Level 2 7 | . . . . . . 15 Level 3 . | . . . . . . . Level 4 . | . . . . . . . Level 5 . | . . . . . . . High Security . | . . . . . . . Max Security . | . . . . . . . Squads Dispatched 8 | . . . . . . 8 Investigation 3 | . . . . . . 3 Extermination . | . . . . . . . Reinforcement 1 | . . . . . . 1 Assault 1 | . . . . . . 1 Garrison 3 | . . . . . . 3 Intercept . | . . . . . . . Searches Triggered . | . . . . . . . Construction Impeded 1 | . . . . . . 1 Haulers Reinforced . | . . . . . . . Active Scanning Responses . | . . . . . . . Cargo Convoy Interrupts . | . . . . . . . Stealth | -11 -10 -9 -9 -9 -8 -8 --------- Run | Yrd Mat Mat Min Exi Min Mat Distress Signals 2 | . 2 . . . . . Communications Jammed . | . . . . . . . Distress Signals . | . . . . . . . Times Spotted 64 | . 8 3 5 . 6 42 Peak Tracking Total 5 | . 4 3 3 . 5 5 Tactical Retreats 2 | . . . . . 1 1 Traps | -11 -10 -9 -9 -9 -8 -8 ------- Run | Yrd Mat Mat Min Exi Min Mat Traps Triggered 2 | . . . . . . 2 Indirectly . | . . . . . . . Trap Hack Attempts . | . . . . . . . Triggered . | . . . . . . . Disarmed . | . . . . . . . Reprogrammed . | . . . . . . . Reused . | . . . . . . . Traps Extracted . | . . . . . . . Installed . | . . . . . . . Triggered . | . . . . . . . Machines | -11 -10 -9 -9 -9 -8 -8 ---------- Run | Yrd Mat Mat Min Exi Min Mat Machines Disabled 1 | . . . . . . 1 Max in Single Turn 1 | . . . . . . 1 Machines Repaired . | . . . . . . . Machines Dismantled . | . . . . . . . Machines Sabotaged . | . . . . . . . Overloaded Fab Kills . | . . . . . . . Hacking | -11 -10 -9 -9 -9 -8 -8 --------- Run | Yrd Mat Mat Min Exi Min Mat Machines Accessed 8 | . 4 1 . . . 3 Terminals 7 | . 4 1 . . . 2 Fabricators . | . . . . . . . Repair Stations . | . . . . . . . Recycling Units . | . . . . . . . Scanalyzers . | . . . . . . . Garrison Access 1 | . . . . . . 1 Total Hacks 15 | . 7 4 . . . 4 Successful 3 | . 1 2 . . . . Failed 12 | . 6 2 . . . 4 Catastrophic 3 | . . 1 . . . 2 Database Lockouts . | . . . . . . . Manual 11 | . 8 . . 1 . 2 Terminals 13 | . 7 4 . . . 2 Fabricators . | . . . . . . . Repair Stations . | . . . . . . . Recycling Units . | . . . . . . . Scanalyzers . | . . . . . . . Garrison Access 2 | . . . . . . 2 Terminal Hacks 2 | . . 2 . . . . Record 2 | . . 2 . . . . Fabricator Hacks . | . . . . . . . Repair Station Hacks . | . . . . . . . Recycling Unit Hacks . | . . . . . . . Scanalyzer . | . . . . . . . Garrison Access Hacks . | . . . . . . . Unauthorized Hacks 1 | . 1 . . . . . Terminals 1 | . 1 . . . . . Operators 1 | . 1 . . . . . Fabricators . | . . . . . . . Repair Stations . | . . . . . . . Recycling Units . | . . . . . . . Scanalyzers . | . . . . . . . Garrison Access . | . . . . . . . Data Cores Recovered . | . . . . . . . Used . | . . . . . . . Hacking Detections 8 | . 4 1 . . . 3 Full Trace Events 2 | . . 1 . . . 1 Feedback Events . | . . . . . . . Feedback Blocked . | . . . . . . . Robot Schematics Acquired . | . . . . . . . Robots Built . | . . . . . . . Authchips . | . . . . . . . Time . | . . . . . . . Total Robot Build Rating . | . . . . . . . Part Schematics Acquired . | . . . . . . . Parts Built . | . . . . . . . Authchips . | . . . . . . . Time . | . . . . . . . Total Part Build Rating . | . . . . . . . Parts Repaired . | . . . . . . . Time . | . . . . . . . Parts Recycled . | . . . . . . . Recycled Matter . | . . . . . . . Retrieved Matter . | . . . . . . . Retrieved Components . | . . . . . . . Parts Scanalyzed . | . . . . . . . Part Schematics Acquired . | . . . . . . . Parts Damaged . | . . . . . . . Bothacking | -11 -10 -9 -9 -9 -8 -8 ------------ Run | Yrd Mat Mat Min Exi Min Mat Used RIF Installer . | . . . . . . . Robots Hacked . | . . . . . . . Non-combat . | . . . . . . . Combat . | . . . . . . . Robot Hacks Applied . | . . . . . . . Relay Couplers Released . | . . . . . . . Fabnet Peak Effective % . | . . . . . . . Robots Rewired . | . . . . . . . Allies Hacked . | . . . . . . . Hacks Repelled . | . . . . . . . Allies | -11 -10 -9 -9 -9 -8 -8 -------- Run | Yrd Mat Mat Min Exi Min Mat Total Allies . | . . . . . . . Largest Group . | . . . . . . . Highest-Rated Group . | . . . . . . . Highest-Rated Ally . | . . . . . . . Total Orders . | . . . . . . . Ally Attacks . | . . . . . . . Total Damage . | . . . . . . . Kills . | . . . . . . . Allies Corrupted . | . . . . . . . Allies Melted . | . . . . . . . Intel | -11 -10 -9 -9 -9 -8 -8 ------- Run | Yrd Mat Mat Min Exi Min Mat Robot Analysis Total . | . . . . . . . Derelict Logs Recovered . | . . . . . . . Drone Launches . | . . . . . . . Drone Recoveries . | . . . . . . . Exploration | -11 -10 -9 -9 -9 -8 -8 ------------- Run | Yrd Mat Mat Min Exi Min Mat Turns Passed 3104 | 128 427 202 169 483 392 1303 Spaces Moved 1574 | 62 226 99 91 301 219 576 Core 31 | 14 . . . . . 17 Treads 1279 | 48 226 99 91 301 219 295 Legs . | . . . . . . . Wheels 254 | . . . . . . 254 Hover . | . . . . . . . Flight 10 | . . . . . . 10 Fastest Speed 50 | 50 160 160 160 160 160 90 Average Speed 159 | 135 160 160 160 160 160 162 Slowest Speed 700 | 160 160 160 160 160 160 700 Overloaded Moves . | . . . . . . . Propulsion Burnouts . | . . . . . . . Robots Hopped . | . . . . . . . Cave-ins Triggered . | . . . . . . . Exploration Rate (%) 29 | 5 35 9 27 61 38 33 Regions Visited 6 Branch Regions 3 Pre-discovered Areas . | . . . . . . . Known Exits Taken . | . . . . . . . Unknown Exits Taken 6 | 1 1 1 1 1 1 . Scrap Searched 1 | . . . 1 . . . Spaces Dug . | . . . . . . . Terrain Destroyed 53 | . . . 3 . 1 49 Melee . | . . . . . . . Projectile 47 | . . . 3 . 1 43 AOE 6 | . . . . . . 6 Terrain Rammed . | . . . . . . . Walls Destroyed . | . . . . . . . Machines Disabled . | . . . . . . . Actions | -11 -10 -9 -9 -9 -8 -8 --------- Run | Yrd Mat Mat Min Exi Min Mat Total 1867 | 88 252 125 100 302 235 765 Wait . | . . . . . . . Move 1568 | 61 225 98 90 300 218 576 Hop . | . . . . . . . Pick Up 41 | 10 4 7 . 1 1 18 Fast Attach 12 | . . . . . . 12 Attach 19 | 7 . 2 . . 2 8 Detach . | . . . . . . . Swap 27 | . . 5 1 1 . 20 Drop 26 | . . 5 2 . . 19 Fire 162 | 9 23 8 7 . 11 104 Melee . | . . . . . . . Ram 7 | . . . . . . 7 Kick . | . . . . . . . Crush 5 | 1 . . . . 3 1 Escape Stasis . | . . . . . . . Rewire . | . . . . . . . Trap . | . . . . . . . Miscellaneous . | . . . . . . . Route ------- -11/Scrapyard -10/Materials -9/Materials -9/Mines -9/Exiles -8/Mines -8/Materials History --------- Turn | Location | Event 23 | -11/Scrapyard | Discovered new exit (range 15) 129 | -11/Scrapyard | Entered Materials 309 | -10/Materials | Build established: Mutant 528 | -10/Materials | Discovered new exit (range 16) 556 | -10/Materials | Entered another Materials area 556 | -9/Materials | Evolved 2 slots: Utility x1, Weapon x1 711 | -9/Materials | Discovered new exit (range 5) 758 | -9/Materials | Entered Mines 806 | -9/Mines | Assembled infested the area 916 | -9/Mines | Deemed a non-threat by the Exiles lab entrance 918 | -9/Mines | Discovered new exit (range 5) 927 | -9/Mines | Entered Exiles 991 | -9/Exiles | Met 8R-AWN 1009 | -9/Exiles | Build established: Scavenger-Skirmisher 1017 | -9/Exiles | Met EX-HEX 1086 | -9/Exiles | Met EX-BIN 1116 | -9/Exiles | Aligned with FarCom system 1118 | -9/Exiles | Given EX-Vault access code 1169 | -9/Exiles | Opened EX-Vault 1180 | -9/Exiles | Found Prototype Storage 1181 | -9/Exiles | Identified Superbattery 1239 | -9/Exiles | Warned to stay clear of 0b10 Research branches 1292 | -9/Exiles | Met EX-DEC 1372 | -9/Exiles | Discovered new exit (range 11) 1410 | -9/Exiles | Left Exiles lab with Superbattery 1410 | -9/Exiles | Entered Mines 1751 | -8/Mines | Discovered new exit (range 7) 1802 | -8/Mines | Entered Materials 1802 | -8/Materials | Evolved 2 slots: Power x1, Utility x1 2316 | -8/Materials | Garrison activated, responded to threat 2385 | -8/Materials | Destroyed 7 combat bots 2634 | -8/Materials | Lost 8 parts (2p3u3w) 2998 | -8/Materials | Core integrity fell below 50% 3002 | -8/Materials | First assault squad dispatched 3105 | -8/Materials | Self-destructed Last Messages --------------- 03055_ M-28 Smith unfolds itself. 03056_ K-01 Serf collects debris. 03062_ Terrain Scanner destroyed. 03063_ K-01 Serf collects debris. 03072_ M-28 Smith repairs Terrain Scanner. 03072_ K-01 Serf collects debris. 03073_ Broken Com. Wheel destroyed. 03079_ Adv. Assault Cannon destroyed. 03079_ Hvy. Particle Cannon destroyed. 03079_ System corrupted by crushing effect (+1). 03079_ Knocked back. 03080_ B-36 Bruiser suffers critical hit (Burn). 03082_ Critical hit (Burn: +37). 03083_ Knocked back. 03090_ System corrupted: Matter fused (-5). 03090_ Critical hit (Smash). 03090_ Hvy. Laser destroyed. 03090_ System corrupted by crushing effect (+2). 03100_ Knocked back. Map ----- +----------------------------------------------------+ | ?#[[ !##??????#???# """ #??????????????? | | ?#[ !#?????#????# "T """ #? ???? ?????? | | ?# [= !#??#?????#?# """ """ #????? ????????? | | ?#=== !#???????#??# #??????????????? | | ?##### !#?????#???######+##### ??" ?????????? | | ?????# !##?????????????+"%=#?????????????????? | | ?????# ####??????????? ??# ! #?? ??????????????? | | ###### #???????#?????"?"?+ # ? ????????????? | | [# #????????????"????# #? ??#??????????? | | # #?????????????"???# #?"""?##??????????? | | # #????????????? ? ?# # ""??????????????? | | + #????????????#??#?# # "?"?????????????? | | # #???#?????????????# / ????????????????? | | # #?????????????????# #????????? ???????? | | # #?????????######### ####??????????????? | | #####?????????# *# [% # #??#???????????? | | #???????#?????#"" # [%! #########?#??????? | | ######?????????????#"T +*!%!%% ?? | | ???????????????????#"" * # = =####### ?? | | ?????????????????#?# # =*!#????????????????? | | ???????????????????# !### ###??????? ????????? | | ???????????????#?#?########?# ####?? ????????????? | | ??????????????????#?######### +???????????????? | | ??????????????????#?# #?#g####??????? ???????? | | ????????????????????# ###g##?????????????????? | | ????????????????????# @ bg #??? ??????????????? | | ????????????????????# #####???????# ?????????? | | ????????????????????# #???????? ?????????????? | | ?????????????????#??#######??????????????????????? | | ????????????????#?????#???#?????#????????????????? | | ?????????????????????????????#???????????????????? | | ????????????????????#????????#???????????????????? | | ????????????????????????????#????????????????????? | | | | | | | | | | | | | | | | | | | | | | | | | | | | | | | | | | | +----------------------------------------------------+ Best States ------------- Heat Dissipation 45 Energy Generation 23 Energy Capacity 1950 Matter Stores 300 Matter Capacity 300 Sight Range 18 Robot Scan Range 14 Terrain Scan Range 16 Terrain Scan Density 10 Evasion (%) 50 Recoil Reduction 2 Item Schematics ----------------- None Robot Schematics ------------------ None Fabricated ------------ Nothing Alien Tech Used ----------------- None Achievements -------------- None Challenges ------------ None Game ------ Seed TrackerInsulatedMount Manual? 0 Play Time 00:34:36 Cumulative 18.2 hours Start 2024.11.08 @ 06:55:40 End 2024.11.08 @ 07:32:02 Sessions 1 Manual Loads 0 Difficulty Rogue Special Mode None Game No. 43 Rogue 43 Adventurer 0 Explorer 0 Win Type - Total 0 Types 0/0/0/0/0/0/0/0/0 Lore% 9 Gallery% 17 Achievement% 17 Wizard Run 0 Options --------- Layout 1 ASCII 0 Keyboard 0 Movement Arrows Keybinds 0 Fullscreen 1 Font 24/Smallcaps Map View 50x40 Zoom Use 10% Tactical HUD 1 Map Filters NONE Filters NONE Steam 1 RUN: 928d6d86-c5d4-4c19-b27f-32587f62a206